[Event "Fagernes GM Open Autumn 2024"]
[Site "Fagernes"]
[Date "2024.10.08"]
[Round "3.16"]
[White "Soham Datar"]
[Black "Oksendal, Martin"]
[Result "0-1"]
[ECO "B93"]
[WhiteElo "2188"]
[BlackElo "2271"]
[Annotator "RC"]
[PlyCount "62"]
[EventDate "2024.10.03"]
[EventType "swiss"]
[EventCountry "NOR"]
[SourceTitle "playchess.com"]
[Source "ChessBase"]
[SourceQuality "1"]
[TimeControl "40/6000:2400+30"]

1. e4 {[%emt 0:00:00]} c5 {[%emt 0:05:14]} 2. Nf3 {[%emt 0:00:00]} d6 {[%emt 0:00:00]} 3. d4 {[%emt 0:00:00]} Nf6 {[%emt 0:00:00]} 4. Nc3 {[%emt 0:00:00]} cxd4 {[%emt 0:00:00]} 5. Nxd4 {[%emt 0:00:00]} a6 {[%emt 0:00:00]} 6. f4 {[%emt 0:00:00]} e5 {[%emt 0:00:00]} 7. Nf5 {[%emt 0:00:00]} d5 {[%emt 0:20:01]} 8. Ne3 {[%emt 0:00:00]} exf4 {[%emt 0:29:49]} 9. Nexd5 {[%emt 0:00:00]} Nxd5 {[%emt 0:02:12]} 10. Nxd5 {[%emt 0:00:00]} Qh4+ {[%emt 0:03:49]} 11. g3 {[%emt 0:00:00]} fxg3 {[%emt 0:00:32]} 12. Bg2 {[%emt 0:00:00]} gxh2+ {[%emt 0:08:23]} 13. Kf1 {[%emt 0:00:00]} Bd6 {[%emt 0:03:01]} 14. Be3 {[%emt 0:36:00]} Bh3 {[%emt 0:03:37]} 15. e5 {[%emt 0:20:54]} Qc4+ {[%emt 0:02:03]} 16. Kf2 {[%emt 0:04:31]} Qh4+ {[%emt 0:00:00]} 17. Kf1 {[%emt 0:00:00]} Bxe5 {[%emt 0:01:41]} 18. Qf3 {[%emt 0:04:08]} Qc4+ {[%emt 0:00:37]} 19. Ke1 {[%emt 0:01:51]} Bg4 {[%emt 0:00:06]} 20. Qf1 {[%emt 0:01:02]} Qxc2 {[%emt 0:01:08]} 21. Bf3 {[%emt 0:18:02]} Bg3+ {[%emt 0:02:37]} 22. Bf2 {[%emt 0:00:00]} Bxf3 {[%emt 0:01:37]} 23. Bxg3 {[%emt 0:00:00]} Bxd5 {[%emt 0:00:00]} 24. Rxh2 {[%emt 0:00:00]} Qg6 {[%emt 0:00:00]} 25. Re2+ {[%emt 0:00:00]} Be6 {[%emt 0:00:00]} 26. Bd6 {[%emt 0:00:00]} Nc6 {[%emt 0:00:00]} 27. Qf2 {[%emt 0:02:01]} O-O-O {[%emt 0:01:07]} 28. Bh2 {[%emt 0:00:18]} Qg5 {[%emt 0:00:50]} 29. Re3 {[%emt 0:02:22]} Rhe8 {[%emt 0:00:29]} 30. Rc1 {[%emt 0:00:00]} Qxe3+ {[%emt 0:00:15]} 31. Qxe3 {[%emt 0:00:00]} Bc4 {[%emt 0:00:00]} 0-1

[Event "Fagernes GM Open Autumn 2024"]
[Site "Fagernes"]
[Date "2024.10.08"]
[Round "3.17"]
[White "Sieber, Fiona"]
[Black "Gaikwad, Siddhant"]
[Result "0-1"]
[ECO "C02"]
[WhiteElo "2264"]
[BlackElo "2039"]
[Annotator "RC"]
[PlyCount "70"]
[EventDate "2024.10.03"]
[EventType "swiss"]
[EventCountry "NOR"]
[SourceTitle "playchess.com"]
[Source "ChessBase"]
[SourceQuality "1"]
[TimeControl "40/6000:2400+30"]

1. e4 {[%emt 0:00:00]} e6 {[%emt 0:00:00]} 2. d4 {[%emt 0:00:00]} d5 {[%emt 0:02:04]} 3. e5 {[%emt 0:00:00]} c5 {[%emt 0:00:00]} 4. c3 {[%emt 0:00:00]} Nc6 {[%emt 0:00:00]} 5. Nf3 {[%emt 0:00:00]} Nh6 {[%emt 0:00:00]} 6. Bb5 {[%emt 0:13:48]} Qb6 {[%emt 0:04:09]} 7. Qe2 {[%emt 0:00:24]} Bd7 {[%emt 0:02:23]} 8. Bxc6 {[%emt 0:01:22]} bxc6 {[%emt 0:02:52]} 9. dxc5 {[%emt 0:11:30]} Bxc5 {[%emt 0:01:32]} 10. O-O {[%emt 0:03:21]} a5 {[%emt 0:01:40]} 11. c4 {[%emt 0:04:36]} Nf5 {[%emt 0:04:47]} 12. Nc3 {[%emt 0:00:34]} a4 {[%emt 0:01:14]} 13. Qc2 {[%emt 0:14:51]} Qa7 {[%emt 0:05:17]} 14. Rb1 {[%emt 0:00:00]} O-O {[%emt 0:02:31]} 15. b4 {[%emt 0:00:00]} axb3 {[%emt 0:02:18]} 16. axb3 {[%emt 0:00:00]} Nd4 {[%emt 0:01:00]} 17. Nxd4 {[%emt 0:06:47]} Bxd4 {[%emt 0:00:00]} 18. Re1 {[%emt 0:00:55]} Qc7 {[%emt 0:03:32]} 19. Bf4 {[%emt 0:16:29]} f6 {[%emt 0:03:01]} 20. Qd2 {[%emt 0:01:56]} Bxe5 {[%emt 0:02:18]} 21. Bxe5 {[%emt 0:00:00]} fxe5 {[%emt 0:00:00]} 22. f3 {[%emt 0:00:41]} Be8 {[%emt 0:05:29]} 23. c5 {[%emt 0:03:41]} Bg6 {[%emt 0:02:35]} 24. Rb2 {[%emt 0:00:00]} Rf5 {[%emt 0:04:46]} 25. b4 {[%emt 0:00:08]} Raf8 {[%emt 0:00:08]} 26. Ra2 {[%emt 0:02:09]} Qf7 {[%emt 0:01:43]} 27. Qe2 {[%emt 0:02:47]} Qf6 {[%emt 0:01:47]} 28. Nd1 {[%emt 0:04:54]} Qh4 {[%emt 0:03:21]} 29. Ne3 {[%emt 0:02:07]} Rg5 {[%emt 0:06:31]} 30. Ng4 {[%emt 0:03:02]} e4 {[%emt 0:00:29]} 31. g3 {[%emt 0:00:48]} Qh5 {[%emt 0:00:03]} 32. h4 {[%emt 0:01:02]} exf3 {[%emt 0:00:51]} 33. Qxe6+ {[%emt 0:00:01]} Bf7 {[%emt 0:00:00]} 34. Qxf7+ {[%emt 0:01:10]} Kxf7 {[%emt 0:00:00]} 35. Ra7+ {[%emt 0:00:17]} Kg8 {[%emt 0:00:00]} 0-1

[Event "Fagernes GM Open Autumn 2024"]
[Site "Fagernes"]
[Date "2024.10.08"]
[Round "3.18"]
[White "Vijayakumar, Rishi"]
[Black "Bhagat Kush"]
[Result "1/2-1/2"]
[ECO "D35"]
[WhiteElo "2172"]
[BlackElo "2245"]
[Annotator "RC"]
[PlyCount "89"]
[EventDate "2024.10.03"]
[EventType "swiss"]
[EventCountry "NOR"]
[SourceTitle "playchess.com"]
[Source "ChessBase"]
[SourceQuality "1"]
[TimeControl "40/6000:2400+30"]

1. d4 {[%emt 0:00:00]} Nf6 {[%emt 0:02:37]} 2. c4 {[%emt 0:00:00]} e6 {[%emt 0:00:00]} 3. Nf3 {[%emt 0:00:00]} d5 {[%emt 0:00:00]} 4. Nc3 {[%emt 0:00:00]} h6 {[%emt 0:00:00]} 5. cxd5 {[%emt 0:00:00]} exd5 {[%emt 0:00:00]} 6. Bf4 {[%emt 0:00:00]} Bd6 {[%emt 0:00:00]} 7. e3 {[%emt 0:00:32]} Bxf4 {[%emt 0:02:17]} 8. exf4 {[%emt 0:00:00]} O-O {[%emt 0:00:54]} 9. Be2 {[%emt 0:00:16]} Qd6 {[%emt 0:21:25]} 10. Ne5 {[%emt 0:02:10]} Qb6 {[%emt 0:10:30]} 11. O-O {[%emt 0:03:49]} c6 {[%emt 0:03:44]} 12. Bd3 {[%emt 0:19:30]} Qxb2 {[%emt 0:09:41]} 13. Qf3 {[%emt 0:00:00]} Qb4 {[%emt 0:09:44]} 14. Rad1 {[%emt 0:02:02]} Nbd7 {[%emt 0:08:30]} 15. Bb1 {[%emt 0:07:10]} Nxe5 {[%emt 0:17:39]} 16. fxe5 {[%emt 0:00:17]} Ne8 {[%emt 0:01:30]} 17. Ne2 {[%emt 0:11:48]} g6 {[%emt 0:03:23]} 18. Qe3 {[%emt 0:22:18]} Kh7 {[%emt 0:00:48]} 19. Ng3 {[%emt 0:02:21]} Qe7 {[%emt 0:00:18]} 20. Rde1 {[%emt 0:02:01]} Ng7 {[%emt 0:00:07]} 21. f4 {[%emt 0:02:18]} f5 {[%emt 0:02:01]} 22. exf6 {[%emt 0:00:06]} Qxf6 {[%emt 0:01:32]} 23. Qe7 {[%emt 0:01:57]} Be6 {[%emt 0:00:20]} 24. Qxb7 {[%emt 0:00:26]} Qxd4+ {[%emt 0:00:05]} 25. Kh1 {[%emt 0:00:00]} Qb6 {[%emt 0:00:00]} 26. Qe7 {[%emt 0:00:09]} Rae8 {[%emt 0:00:00]} 27. Bxg6+ {[%emt 0:04:33]} Kxg6 {[%emt 0:00:00]} 28. Rxe6+ {[%emt 0:00:00]} Kh7 {[%emt 0:00:00]} 29. Rxh6+ {[%emt 0:00:00]} Kxh6 {[%emt 0:00:29]} 30. Qh4+ {[%emt 0:00:00]} Kg6 {[%emt 0:00:00]} 31. f5+ {[%emt 0:00:00]} Kf7 {[%emt 0:00:49]} 32. f6 {[%emt 0:00:00]} Kg8 {[%emt 0:00:06]} 33. Qg5 {[%emt 0:00:00]} Rf7 {[%emt 0:00:12]} 34. Nf5 {[%emt 0:00:01]} Qf2 {[%emt 0:00:00]} 35. Qc1 {[%emt 0:03:29]} Qxf1+ {[%emt 0:00:07]} 36. Qxf1 {[%emt 0:00:00]} Nxf5 {[%emt 0:00:00]} 37. g4 {[%emt 0:00:00]} Nd6 {[%emt 0:00:00]} 38. g5 {[%emt 0:00:07]} Ne4 {[%emt 0:00:37]} 39. Qf5 {[%emt 0:00:11]} Kf8 {[%emt 0:00:00]} 40. Qg6 {[%emt 0:00:56]} Re5 {[%emt 0:00:00]} 41. h4 {[%emt 0:47:40]} Nxf6 {[%emt 0:21:21]} 42. Qh6+ {[%emt 0:00:00]} Ke7 {[%emt 0:01:44]} 43. gxf6+ {[%emt 0:00:00]} Rxf6 {[%emt 0:00:23]} 44. Qg7+ {[%emt 0:00:00]} Ke6 {[%emt 0:00:04]} 45. Qg8+ {[%emt 0:00:00]} 1/2-1/2

[Event "Fagernes GM Open Autumn 2024"]
[Site "Fagernes"]
[Date "2024.10.08"]
[Round "3.19"]
[White "Blomqvist, Erik"]
[Black "Kanyamarala, Trisha"]
[Result "1-0"]
[ECO "B50"]
[WhiteElo "2483"]
[BlackElo "2160"]
[Annotator "TA"]
[PlyCount "93"]
[EventDate "2024.10.03"]
[EventType "swiss"]
[EventCountry "NOR"]
[SourceTitle "playchess.com"]
[Source "ChessBase"]
[SourceQuality "1"]
[TimeControl "40/6000:2400+30"]

{[%evp 11,93,4,10,9,22,15,19,0,2,6,0,0,0,-11,-6,-15,58,43,57,54,50,39,90,42,41,29,58,57,58,65,58,58,191,198,193,199,264,262,276,268,330,336,372,368,358,365,425,416,442,434,419,413,454,433,458,450,508,443,452,436,458,467,467,447,469,469,466,452,594,569,694,685,656,648,817,674,717,643,865,862,1178,1114,1545,1410]} 1. e4 {[%emt 0:00:25]} c5 {[%emt 0:00:00]} 2. Nf3 {[%emt 0:00:00]} d6 {[%emt 0:00:00]} 3. Bc4 {[%emt 0:00:00]} Nc6 {[%emt 0:00:44]} 4. c3 {[%emt 0:00:00]} Nf6 {[%emt 0:02:19]} 5. d3 {[%emt 0:00:00]} g6 {[%emt 0:04:41]} 6. O-O {[%emt 0:00:21]} Bg7 {[%emt 0:00:17]} 7. a4 {[%emt 0:00:08]} O-O {[%emt 0:00:31]} 8. Re1 {[%emt 0:00:00]} a6 {[%emt 0:10:34]} 9. h3 {[%emt 0:03:43] The position is equal.} Rb8 {[%emt 0:07:30]} 10. Na3 {[%emt 0:00:13]} d5 {[%emt 0:04:39]} 11. exd5 {[%emt 0:09:49]} Nxd5 {[%emt 0:00:00]} 12. Bg5 {[%emt 0:00:00][%cal Bc1g5,Bg5h4,Bh4g3][%mdl 32]} h6 {[%emt 0:06:56]} 13. Bh4 {[%emt 0:00:00]} Be6 {[%emt 0:05:59]} (13... Nf4 $11) 14. Bg3 $14 {[%emt 0:05:39]} Rc8 {[%emt 0:00:29]} 15. Bb3 {[%emt 0:02:37]} Na5 {[%emt 0:07:28][%cal Od5c3] Strongly threatening ...Nxc3!} 16. Ba2 {[%emt 0:00:35]} Nc6 {[%emt 0:09:40] [#]} (16... Qd7 $14) 17. Rxe6 {[%emt 0:04:27]} fxe6 {[%emt 0:00:06]} 18. Qe2 {[%emt 0:00:00]} Rf6 {[%emt 0:04:57]} 19. Re1 {[%emt 0:02:45][%mdl 1024] White has compensation.} Kh7 {[%emt 0:03:06]} 20. Qe4 {[%emt 0:05:22]} Qf8 {[%emt 0:03:59]} 21. Nc4 {[%emt 0:09:53]} Nf4 {[%emt 0:06:21] Black cannot hold the game after this.} (21... b5 $14) 22. Nce5 $18 {[%emt 0:07:16]} Nxe5 {[%emt 0:00:33]} 23. Nxe5 {[%emt 0:00:00][%cal Oe5d7] [#] Black must now prevent Nd7!} Nh5 {[%emt 0:00:23]} (23... Rf5 {is a better defense.} 24. Bxf4 Rxf4 25. Nxg6 (25. Qxg6+ Kh8 $18) (25. Qxb7 $2 Bxe5 26. Bxe6 Rb8 $19) 25... Rxe4 26. Nxf8+ Rxf8 27. Rxe4 e5) 24. Nd7 {[%emt 0:02:20]} (24. Qxb7 Rb8 25. Qxa6 Rxb2 $14) 24... Qd8 {[%emt 0:01:05]} 25. Nxf6+ {[%emt 0:00:00]} (25. Bxe6 $6 Nxg3 26. fxg3 (26. Nxf6+ exf6 27. fxg3 f5 $18) 26... Rc7 $18) 25... exf6 {[%emt 0:00:48][%cal Be7f6,Bf6f5,Bf5f4][%mdl 32]} 26. Bh2 {[%emt 0:00:44]} (26. Bxe6 Nxg3 27. fxg3 f5 $16) 26... e5 {[%emt 0:11:12]} 27. Bf7 {[%emt 0:05:01] Black is weak on the light squares} ({Much less strong is} 27. Qxb7 Rb8 28. Qxa6 Rxb2 $18) 27... f5 {[%emt 0:01:21]} 28. Qxb7 {[%emt 0:00:00]} Rc7 {[%emt 0:01:30]} 29. Qb6 {[%emt 0:00:00]} (29. Qxa6 Rxf7 30. Bxe5 Re7 $15) 29... Bf6 {[%emt 0:00:54]} 30. Bc4 {[%emt 0:00:00][%cal Bf7c4,Bc4a6,Ba6b7,Bb7f3][%mdl 32]} ({Not} 30. Bxe5 Rxf7 31. Qxa6 Re7 $17) 30... f4 {[%emt 0:00:09]} 31. Bxa6 {[%emt 0:00:42]} Ng7 {[%emt 0:00:27][%cal Bh5g7,Bg7f5,Bf5d6][%mdl 32]} 32. a5 {[%emt 0:00:29][%cal Ba4a5,Ba5a6][%mdl 32] White is clearly winning.} Nf5 {[%emt 0:00:35]} 33. Bb7 {[%emt 0:01:29] Hoping for a6.} Nd6 {[%emt 0:00:10]} 34. Bf3 {[%emt 0:00:00]} Nc8 {[%emt 0:00:03]} 35. Qe6 {[%emt 0:00:00]} Qd6 {[%emt 0:00:00]} 36. Qxd6 {[%emt 0:00:28]} Nxd6 {[%emt 0:00:00]} 37. a6 {[%emt 0:00:34]} Ra7 {[%emt 0:00:00]} 38. Ra1 {[%emt 0:00:00]} Bd8 {[%emt 0:00:00]} 39. Kf1 {[%emt 0:00:01]} g5 {[%emt 0:00:00]} 40. Bd5 {[%emt 0:00:21]} Nb5 {[%emt 0:00:00]} 41. f3 {[%emt 0:41:05]} Bb6 {[%emt 0:01:50]} 42. Bg1 {[%emt 0:00:00]} Rc7 {[%emt 0:00:46]} 43. Bc4 {[%emt 0:00:00]} Na7 {[%emt 0:02:09]} 44. b4 {[%emt 0:00:00]} Kg7 {[%emt 0:03:11]} 45. Rb1 {[%emt 0:00:00]} Kf6 {[%emt 0:00:36]} 46. bxc5 {[%emt 0:00:00]} Bxc5 {[%emt 0:00:45]} 47. Rb7 {[%emt 0:00:00] Weighted Error Value: White=0.11 (very precise) /Black=0.34.  Mistake:       	White=1     	Black=4      Inaccurate:     	---       	Black=2      OK:         	White=22    	Black=10     Best:        	---       	Black=1} 1-0

[Event "Fagernes GM Open Autumn 2024"]
[Site "Fagernes"]
[Date "2024.10.08"]
[Round "3.20"]
[White "Aamodt, Peder Marcus"]
[Black "Hansen, Torbjorn Ringdal"]
[Result "0-1"]
[ECO "B30"]
[WhiteElo "2126"]
[BlackElo "2415"]
[Annotator "TA"]
[PlyCount "64"]
[EventDate "2024.10.03"]
[EventType "swiss"]
[EventCountry "NOR"]
[SourceTitle "playchess.com"]
[Source "ChessBase"]
[SourceQuality "1"]
[TimeControl "40/6000:2400+30"]

{[%evp 9,64,1,4,0,16,0,25,-31,-29,-26,-23,-37,0,0,0,-3,0,0,-4,-32,-27,-48,-28,-56,-61,-94,-91,-85,-108,-114,-83,-217,-208,-237,-202,-193,-185,-185,-189,-275,-283,-283,-199,-416,-422,-416,-402,-427,-425,-503,-507,-512,-514,-506,-491,-692,-455]} 1. e4 {[%emt 0:03:46]} c5 {[%emt 0:00:00]} 2. Nf3 {[%emt 0:00:00]} Nc6 {[%emt 0:00:00]} 3. Bb5 {[%emt 0:00:00]} Nf6 {[%emt 0:00:00]} 4. Nc3 {[%emt 0:00:00]} Nd4 {[%emt 0:00:00]} 5. Bd3 {[%emt 0:12:13]} d6 {[%emt 0:04:26]} 6. h3 {[%emt 0:03:27]} e5 {[%emt 0:01:38]} 7. O-O {[%emt 0:09:27]} Be7 {[%emt 0:00:57]} 8. Nxd4 {[%emt 0:00:56]} ({White should try} 8. Bc4 $11) 8... cxd4 $15 {[%emt 0:00:00]} 9. Ne2 {[%emt 0:00:00]} d5 {[%emt 0:06:00]} 10. Bb5+ {[%emt 0:14:17]} Nd7 {[%emt 0:12:26][%cal Bf6d7,Bd7b6,Bb6c4,Bc4e5,Be5d3][%mdl 32]} 11. exd5 {[%emt 0:02:39]} O-O $1 {[%emt 0:00:07]} 12. c3 {[%emt 0:07:18]} Nb6 {[%emt 0:04:23]} 13. cxd4 {[%emt 0:02:59]} exd4 {[%emt 0:04:47]} 14. Qb3 {[%emt 0:06:45]} a6 {[%emt 0:09:57]} 15. Bc4 {[%emt 0:02:07]} Bd7 {[%emt 0:00:38]} 16. a4 {[%emt 0:07:46]} Bxa4 {[%emt 0:03:23]} 17. Qd3 {[%emt 0:03:24]} (17. Rxa4 Nxa4 18. Nxd4 (18. Qxa4 b5 $17) 18... Bf6 $17) 17... Nxc4 {[%emt 0:00:15]} 18. Rxa4 {[%emt 0:00:00]} b5 {[%emt 0:00:00]} 19. Ra1 {[%emt 0:00:00]} Qxd5 {[%emt 0:01:39] Black is more active.} 20. b3 {[%emt 0:02:14] White does not recover from this.} (20. Qxd4 $17 {keeps fighting.} Qxd4 21. Nxd4) 20... Ne5 $19 {[%emt 0:02:53]} 21. Qxd4 {[%emt 0:00:32]} Qxd4 {[%emt 0:00:15]} 22. Nxd4 {[%emt 0:00:00]} Nd3 {[%emt 0:00:27] [#] Repels Bb2. ...Bf6 is the strong threat.} 23. Rb1 {[%emt 0:10:38]} Bf6 {[%emt 0:03:30]} 24. Nc2 {[%emt 0:01:53] White is weak on the dark squares} (24. Nf3 $142) 24... Rac8 {[%emt 0:00:51]} 25. Ne3 {[%emt 0:00:00]} Rfd8 {[%emt 0:00:08] Repels Nd5. And now ...a5 would win.} 26. Ba3 $2 {[%emt 0:01:40] [#]} (26. b4) 26... b4 {[%emt 0:00:23]} 27. Bc1 {[%emt 0:00:00]} a5 {[%emt 0:01:13]} 28. g4 {[%emt 0:02:16]} Rc5 {[%emt 0:00:37] Black is clearly winning.} 29. h4 {[%emt 0:01:03]} Rdc8 {[%emt 0:01:24][%cal Rc5c1]} 30. g5 {[%emt 0:00:00]} Bd4 {[%emt 0:00:16]} 31. Nc4 {[%emt 0:00:00]} a4 {[%emt 0:00:29]} 32. Nb6 {[%emt 0:01:33]} (32. Kg2 $142) 32... R8c6 {[%emt 0:02:12] Weighted Error Value: White=0.39/Black=0.08 (flawless) .  Mistake:       	White=5     	---        Inaccurate:     	White=3     	Black=2      OK:         	White=9     	Black=13     Best:        	---       	Black=2      Strong:       	---       	Black=1} ({Less strong is} 32... Nxc1 33. Nxc8 Ne2+ (33... Nxb3 34. Nb6 $11) (33... Rxc8 $2 {perishes.} 34. Rfxc1 Rd8 35. bxa4 $18) 34. Kh1 $17) 0-1

[Event "Fagernes GM Open Autumn 2024"]
[Site "Fagernes"]
[Date "2024.10.08"]
[Round "3.21"]
[White "Sherman, Raem"]
[Black "Kittilsen, Sigurd"]
[Result "1-0"]
[ECO "B36"]
[WhiteElo "2390"]
[BlackElo "1981"]
[Annotator "TA"]
[PlyCount "71"]
[EventDate "2024.10.03"]
[EventType "swiss"]
[EventCountry "NOR"]
[SourceTitle "playchess.com"]
[Source "ChessBase"]
[SourceQuality "1"]
[TimeControl "40/6000:2400+30"]

{[%evp 20,71,33,35,38,31,48,33,45,47,58,56,57,70,70,68,93,92,98,66,96,45,38,38,52,28,39,23,28,29,28,28,29,34,385,395,395,386,397,326,396,396,400,374,404,395,417,412,571,571,756,734,29986,29987]} 1. e4 {[%emt 0:00:00]} c5 {[%emt 0:00:00]} 2. Nf3 {[%emt 0:00:00]} g6 {[%emt 0:00:00]} 3. d4 {[%emt 0:00:00]} cxd4 {[%emt 0:00:00]} 4. Nxd4 {[%emt 0:00:00]} Nc6 {[%emt 0:00:00]} 5. c4 {[%emt 0:00:00]} Nf6 {[%emt 0:00:00]} 6. Nc3 {[%emt 0:00:00]} d6 {[%emt 0:00:00]} 7. Be2 {[%emt 0:00:00]} Nxd4 {[%emt 0:00:00]} 8. Qxd4 {[%emt 0:00:00]} Bg7 {[%emt 0:00:00]} 9. O-O {[%emt 0:00:00]} O-O {[%emt 0:00:00]} 10. Qd3 {[%emt 0:00:00]} Be6 {[%emt 0:00:00]} 11. Be3 {[%emt 0:00:00]} Nd7 {[%emt 0:00:00][%cal Bf6d7,Bd7e5,Be5c6,Bc6d4][%mdl 32]} 12. b3 {[%emt 0:01:34]} Qa5 {[%emt 0:03:07]} 13. Bd2 {[%emt 0:00:01]} Qb6 {[%emt 0:01:49] White is slightly better.} 14. Rac1 {[%emt 0:01:48]} Ne5 {[%emt 0:00:09]} 15. Qg3 {[%emt 0:04:17]} Nc6 {[%emt 0:00:31]} 16. Kh1 {[%emt 0:03:59]} a6 {[%emt 0:15:42]} 17. f4 {[%emt 0:06:57]} Nd4 {[%emt 0:10:55]} 18. Bd3 {[%emt 0:00:05] Black must now prevent f5.} f5 {[%emt 0:00:51]} 19. Qe1 {[%emt 0:09:05] Strongly threatening exf5.} Qd8 {[%emt 0:01:16]} 20. exf5 {[%emt 0:07:14]} (20. Nd5 $16) 20... Bxf5 $14 {[%emt 0:00:00]} 21. Bxf5 {[%emt 0:00:08]} Rxf5 {[%emt 0:00:00]} 22. Nd5 {[%emt 0:00:41]} e6 {[%emt 0:04:17]} 23. Ne3 {[%emt 0:03:50]} Rf7 {[%emt 0:02:54]} 24. Bc3 {[%emt 0:00:06]} Qb6 {[%emt 0:05:05]} 25. Rd1 $36 {[%emt 0:04:50][%mdl 2048] White has good play.} Raf8 {[%emt 0:02:57]} 26. Qd2 {[%emt 0:14:50][%cal Rc3d4]} Rxf4 {[%emt 0:02:00][%mdl 8192] Black cannot hold the game after this.} ({Black should try} 26... Nc6 $14) 27. Rxf4 $18 {[%emt 0:01:13]} Rxf4 {[%emt 0:01:05] [#]} 28. Nd5 $1 {[%emt 0:00:51][%mdl 512]} exd5 {[%emt 0:00:48]} 29. Qxf4 {[%emt 0:00:00]} Ne2 {[%emt 0:00:05]} 30. Qg4 {[%emt 0:00:00] White threatens Qe6+ and mate.} Bxc3 {[%emt 0:16:46]} ({Worse is} 30... Nxc3 31. Qe6+ Kf8 32. Rf1+) 31. Qxe2 {[%emt 0:00:00] KQR-KQB} Be5 {[%emt 0:01:54]} 32. Rxd5 {[%emt 0:00:00][%cal Oc4c5] c5! would now be deadly.} ({But not} 32. cxd5 Qd8 33. Rc1 Kg7 $18) 32... Qc6 {[%emt 0:00:59]} 33. Qe4 {[%emt 0:01:14]} Qb6 {[%emt 0:04:09] [#]} 34. c5 $1 {[%emt 0:01:29][%cal Bc4c5,Bc5b6][%mdl 32]} Qc6 {[%emt 0:01:15]} (34... Qc7 35. Qc4) 35. Qc4 {[%emt 0:01:20][%csl LRd6,LRe5]} b5 {[%emt 0:00:13]} 36. cxb6 {[%emt 0:00:00] Weighted Error Value: White=0.06 (flawless) /Black=0.71.  Loses game:     	---       	Black=1      Mistake:       	White=1     	---        Inaccurate:     	White=1     	Black=4      OK:         	White=12    	Black=7      Best:        	---       	Black=1      Brilliant:      	White=2     	---} (36. Rxe5+ $2 {perishes.} bxc4 37. Re1 c3 $19 (37... dxc5 $2 38. bxc4 Qa4 39. a3 $19)) 1-0